[Event "VI Sunway Sitges Open 2019"]
[Site "Sitges"]
[Date "2019.12.18"]
[Round "6.44"]
[White "Gines Esteo, Pedro Antonio"]
[Black "Rafiee, Makan"]
[Result "1-0"]
[ECO "A30"]
[WhiteElo "2483"]
[BlackElo "2335"]
[Annotator "ChessBase"]
[PlyCount "95"]
[EventDate "2019.12.13"]
[EventType "swiss"]
[EventCountry "ESP"]
[SourceTitle "playchess.com"]
[Source "ChessBase"]
[SourceQuality "1"]
[TimeControl "40/5400+30:1800+30"]

1. Nf3 {[%emt 0:09:23]} c5 {[%emt 0:00:14]} 2. e3 {[%emt 0:04:37]} g6 {[%emt 0:01:35]} 3. c4 {[%emt 0:09:44]} Nf6 {[%emt 0:01:28]} 4. Nc3 {[%emt 0:00:29]} Bg7 {[%emt 0:00:09]} 5. b3 {[%emt 0:00:04]} O-O {[%emt 0:02:33]} 6. Bb2 {[%emt 0:00:04]} d5 {[%emt 0:02:14]} 7. Nxd5 {[%emt 0:04:13]} Nxd5 {[%emt 0:00:06]} 8. Bxg7 {[%emt 0:00:03]} Kxg7 {[%emt 0:02:06]} 9. cxd5 {[%emt 0:00:07]} Qxd5 {[%emt 0:00:03]} 10. Qc2 {[%emt 0:00:46]} b6 {[%emt 0:11:35]} 11. h4 {[%emt 0:09:13]} h5 {[%emt 0:03:59]} 12. Qc3+ {[%emt 0:08:42]} f6 {[%emt 0:00:10]} 13. Bc4 {[%emt 0:12:58]} Qc6 {[%emt 0:04:33]} 14. b4 {[%emt 0:08:30]} Ba6 {[%emt 0:07:15]} 15. Bxa6 {[%emt 0:07:47]} Nxa6 {[%emt 0:00:04]} 16. bxc5 {[%emt 0:00:10]} Qxc5 {[%emt 0:00:11]} 17. Qb3 {[%emt 0:03:37]} Qd6 {[%emt 0:18:12]} 18. d4 {[%emt 0:01:47]} Rfc8 {[%emt 0:01:36]} 19. O-O {[%emt 0:01:53]} Rc7 {[%emt 0:01:10]} 20. e4 {[%emt 0:02:29]} Qb4 {[%emt 0:04:48]} 21. Qd3 {[%emt 0:05:35]} Qc4 {[%emt 0:02:03]} 22. Qd2 {[%emt 0:00:11]} Rac8 {[%emt 0:04:34]} 23. a3 {[%emt 0:01:51]} Nb8 {[%emt 0:02:23]} 24. Qf4 {[%emt 0:02:00]} Nd7 {[%emt 0:03:21]} 25. g4 {[%emt 0:00:08]} hxg4 {[%emt 0:11:01]} 26. Qxg4 {[%emt 0:00:01]} Qb5 {[%emt 0:00:49]} 27. d5 {[%emt 0:03:31]} Nf8 {[%emt 0:06:52]} 28. Kh2 {[%emt 0:01:29]} Qd7 {[%emt 0:00:25]} 29. Qf4 {[%emt 0:00:08]} e5 {[%emt 0:01:07]} 30. Qg3 {[%emt 0:02:12]} Rc3 {[%emt 0:00:05]} 31. a4 {[%emt 0:00:56]} R8c4 {[%emt 0:00:58]} 32. Rfe1 {[%emt 0:00:44]} Qc8 {[%emt 0:00:54]} 33. Qg2 {[%emt 0:00:33]} Rb4 {[%emt 0:00:28]} 34. h5 {[%emt 0:00:28]} Rbb3 {[%emt 0:00:34]} 35. Nd2 {[%emt 0:00:22]} Rb2 {[%emt 0:00:27]} 36. Nf1 {[%emt 0:00:40]} Rcc2 {[%emt 0:00:08]} 37. Kg1 {[%emt 0:00:34]} Kh7 {[%emt 0:05:57]} 38. Ne3 {[%emt 0:00:14]} Rc7 {[%emt 0:00:06]} 39. Qf3 {[%emt 0:00:21]} Rg7 {[%emt 0:00:58]} 40. Kh1 {[%emt 0:00:00]} Kh8 {[%emt 0:00:00]} 41. Rac1 {[%emt 0:02:15]} Qd8 {[%emt 0:02:40]} 42. Qh3 {[%emt 0:15:22]} Qd7 {[%emt 0:07:37]} 43. Qxd7 {[%emt 0:03:20]} Rxd7 {[%emt 0:01:57]} 44. Rc8 {[%emt 0:00:40]} Kg7 {[%emt 0:00:08]} 45. h6+ {[%emt 0:00:53]} Kf7 {[%emt 0:00:03]} 46. Kg2 {[%emt 0:00:14]} Nh7 {[%emt 0:10:38]} 47. Rh1 {[%emt 0:03:29]} f5 {[%emt 0:06:26]} 48. Nc4 {[%emt 0:01:20]} 1-0

[Event "VI Sunway Sitges Open 2019"]
[Site "Sitges"]
[Date "2019.12.18"]
[Round "6.45"]
[White "Larino Nieto, David"]
[Black "Krastev, Alexander"]
[Result "0-1"]
[ECO "A43"]
[WhiteElo "2475"]
[BlackElo "2323"]
[Annotator "ChessBase"]
[PlyCount "138"]
[EventDate "2019.12.13"]
[EventType "swiss"]
[EventCountry "ESP"]
[SourceTitle "playchess.com"]
[Source "ChessBase"]
[SourceQuality "1"]
[TimeControl "40/5400+30:1800+30"]

1. Nf3 {[%emt 0:00:00]} g6 {[%emt 0:00:00]} 2. d4 {[%emt 0:00:00]} Bg7 {[%emt 0:00:00]} 3. e4 {[%emt 0:00:20]} c5 {[%emt 0:00:05]} 4. d5 {[%emt 0:04:01]} d6 {[%emt 0:00:20]} 5. h3 {[%emt 0:00:15]} Nf6 {[%emt 0:00:20]} 6. Nc3 {[%emt 0:00:10]} O-O {[%emt 0:00:08]} 7. Bf4 {[%emt 0:00:50]} b5 {[%emt 0:05:02]} 8. Nxb5 {[%emt 0:10:41]} Nxe4 {[%emt 0:00:13]} 9. Bd3 {[%emt 0:00:01]} a6 {[%emt 0:02:31]} 10. Na3 {[%emt 0:01:38]} Bxb2 {[%emt 0:15:29]} 11. Bxe4 {[%emt 0:00:44]} Qa5+ {[%emt 0:00:10]} 12. Nd2 {[%emt 0:01:04]} Qxa3 {[%emt 0:00:04]} 13. O-O {[%emt 0:00:40]} Bg7 {[%emt 0:04:34]} 14. Rb1 {[%emt 0:04:57]} Qa4 {[%emt 0:19:02]} 15. Qf3 {[%emt 0:03:47]} Nd7 {[%emt 0:11:48]} 16. Bd3 {[%emt 0:01:40]} Ra7 {[%emt 0:01:15]} 17. Nc4 {[%emt 0:01:57]} Rb7 {[%emt 0:05:16]} 18. Rb3 {[%emt 0:03:27]} Rxb3 {[%emt 0:02:49]} 19. axb3 {[%emt 0:00:02]} Qb4 {[%emt 0:00:23]} 20. Rd1 {[%emt 0:08:53]} Nf6 {[%emt 0:03:35]} 21. g4 {[%emt 0:00:51]} h5 {[%emt 0:03:54]} 22. gxh5 {[%emt 0:01:23]} Nxh5 {[%emt 0:00:13]} 23. Bd2 {[%emt 0:00:23]} Qb7 {[%emt 0:00:55]} 24. Na5 {[%emt 0:00:23]} Qd7 {[%emt 0:01:09]} 25. Bf1 {[%emt 0:01:52]} Qf5 {[%emt 0:03:42]} 26. Qxf5 {[%emt 0:00:06]} Bxf5 {[%emt 0:00:07]} 27. c3 {[%emt 0:00:20]} Nf6 {[%emt 0:01:47]} 28. Be1 {[%emt 0:01:03]} Ne4 {[%emt 0:01:26]} 29. Nc6 {[%emt 0:02:28]} Re8 {[%emt 0:00:20]} 30. Rd3 {[%emt 0:00:42]} Kf8 {[%emt 0:02:53]} 31. Re3 {[%emt 0:01:28]} Nf6 {[%emt 0:01:33]} 32. c4 {[%emt 0:00:51]} Bh6 {[%emt 0:02:00]} 33. Re2 {[%emt 0:00:11]} e6 {[%emt 0:10:40]} 34. Bc3 {[%emt 0:00:15]} Ne4 {[%emt 0:00:24]} 35. Ba5 {[%emt 0:00:22]} exd5 {[%emt 0:02:31]} 36. cxd5 {[%emt 0:00:01]} Nf6 {[%emt 0:00:05]} 37. Bd2 {[%emt 0:00:22]} Bxd2 {[%emt 0:00:34]} 38. Rxd2 {[%emt 0:00:06]} Re1 {[%emt 0:00:14]} 39. Kg2 {[%emt 0:00:52]} Be4+ {[%emt 0:00:23]} 40. f3 {[%emt 0:00:00]} Bxd5 {[%emt 0:00:00]} 41. Bc4 {[%emt 0:01:57]} Bxc6 {[%emt 0:15:04]} 42. Rxd6 {[%emt 0:00:27]} Bb5 {[%emt 0:00:04]} 43. Bxb5 {[%emt 0:00:13]} axb5 {[%emt 0:00:04]} 44. Rxf6 {[%emt 0:00:07]} Re6 {[%emt 0:00:07]} 45. Rf4 {[%emt 0:00:01]} Rc6 {[%emt 0:02:20]} 46. Re4 {[%emt 0:01:18]} c4 {[%emt 0:00:13]} 47. bxc4 {[%emt 0:01:07]} bxc4 {[%emt 0:00:04]} 48. Re2 {[%emt 0:00:04]} c3 {[%emt 0:00:07]} 49. Rc2 {[%emt 0:00:02]} Ke7 {[%emt 0:00:36]} 50. Kf2 {[%emt 0:00:40]} Kf6 {[%emt 0:00:14]} 51. h4 {[%emt 0:00:25]} Kf5 {[%emt 0:00:34]} 52. Ke2 {[%emt 0:02:39]} Kf4 {[%emt 0:00:16]} 53. Kf2 {[%emt 0:00:24]} Rc7 {[%emt 0:00:13]} 54. Ke2 {[%emt 0:00:09]} Rc6 {[%emt 0:05:54]} 55. Kf2 {[%emt 0:00:07]} f6 {[%emt 0:00:06]} 56. Ke2 {[%emt 0:00:37]} Kg3 {[%emt 0:00:13]} 57. Kd1 {[%emt 0:01:13]} Kxf3 {[%emt 0:00:36]} 58. Rh2 {[%emt 0:00:01]} c2+ {[%emt 0:00:41]} 59. Kc1 {[%emt 0:00:01]} Kg3 {[%emt 0:00:06]} 60. Rh1 {[%emt 0:00:07]} f5 {[%emt 0:00:09]} 61. h5 {[%emt 0:00:08]} gxh5 {[%emt 0:00:06]} 62. Rxh5 {[%emt 0:00:01]} f4 {[%emt 0:00:05]} 63. Rg5+ {[%emt 0:00:07]} Kf2 {[%emt 0:00:06]} 64. Rg8 {[%emt 0:00:03]} f3 {[%emt 0:00:04]} 65. Rf8 {[%emt 0:00:15]} Kg2 {[%emt 0:00:06]} 66. Rg8+ {[%emt 0:00:06]} Kf1 {[%emt 0:00:04]} 67. Rf8 {[%emt 0:00:32]} f2 {[%emt 0:00:04]} 68. Rg8 {[%emt 0:00:03]} Rc4 {[%emt 0:00:16]} 69. Rg7 {[%emt 0:00:20]} Ke2 {[%emt 0:00:05]} 0-1

[Event "VI Sunway Sitges Open 2019"]
[Site "Sitges"]
[Date "2019.12.18"]
[Round "6.46"]
[White "Karthik Venkataraman"]
[Black "Krishnater Kushager"]
[Result "1-0"]
[ECO "B53"]
[WhiteElo "2470"]
[BlackElo "2308"]
[Annotator "ChessBase"]
[PlyCount "77"]
[EventDate "2019.12.13"]
[EventType "swiss"]
[EventCountry "ESP"]
[SourceTitle "playchess.com"]
[Source "ChessBase"]
[SourceQuality "1"]
[TimeControl "40/5400+30:1800+30"]

1. e4 {[%emt 0:00:00]} c5 {[%emt 0:00:00]} 2. Nf3 {[%emt 0:00:00]} d6 {[%emt 0:00:00]} 3. d4 {[%emt 0:00:10]} Nf6 {[%emt 0:00:00]} 4. dxc5 {[%emt 0:00:46]} Nxe4 {[%emt 0:00:05]} 5. cxd6 {[%emt 0:00:06]} Nc6 {[%emt 0:00:29]} 6. dxe7 {[%emt 0:00:06]} Qxd1+ {[%emt 0:01:24]} 7. Kxd1 {[%emt 0:00:04]} Bxe7 {[%emt 0:00:58]} 8. Be3 {[%emt 0:00:05]} Bf5 {[%emt 0:18:12]} 9. Bd3 {[%emt 0:04:17]} O-O-O {[%emt 0:03:21]} 10. Ke2 {[%emt 0:02:13]} Nb4 {[%emt 0:03:10]} 11. a3 {[%emt 0:08:44]} Nxd3 {[%emt 0:08:28]} 12. cxd3 {[%emt 0:00:06]} Nf6 {[%emt 0:02:40]} 13. Ne5 {[%emt 0:04:20]} Rhe8 {[%emt 0:07:51]} 14. Nd2 {[%emt 0:01:27]} Kb8 {[%emt 0:11:24]} 15. Ndf3 {[%emt 0:00:37]} Ng4 {[%emt 0:01:04]} 16. Nxg4 {[%emt 0:03:45]} Bxg4 {[%emt 0:00:03]} 17. Rhd1 {[%emt 0:00:12]} Rd5 {[%emt 0:03:48]} 18. h3 {[%emt 0:01:01]} Bh5 {[%emt 0:00:06]} 19. Rac1 {[%emt 0:01:53]} f5 {[%emt 0:05:41]} 20. Rc4 {[%emt 0:04:49]} Bf6 {[%emt 0:02:29]} 21. Kd2 {[%emt 0:13:34]} Bxf3 {[%emt 0:03:26]} 22. gxf3 {[%emt 0:02:31]} Bxb2 {[%emt 0:00:34]} 23. Re1 {[%emt 0:03:37]} Rdd8 {[%emt 0:07:00]} 24. a4 {[%emt 0:06:32]} Be5 {[%emt 0:06:24]} 25. Bg5 {[%emt 0:00:34]} Bf6 {[%emt 0:00:29]} 26. Bxf6 {[%emt 0:01:21]} gxf6 {[%emt 0:00:05]} 27. Rxe8 {[%emt 0:00:04]} Rxe8 {[%emt 0:00:02]} 28. Rh4 {[%emt 0:00:06]} Re7 {[%emt 0:02:04]} 29. Rh5 {[%emt 0:01:04]} Re5 {[%emt 0:01:02]} 30. Rxh7 {[%emt 0:00:06]} Ra5 {[%emt 0:00:19]} 31. Rh4 {[%emt 0:00:05]} Kc7 {[%emt 0:00:04]} 32. Rb4 {[%emt 0:04:47]} Re5 {[%emt 0:01:06]} 33. Rb5 {[%emt 0:02:21]} Re7 {[%emt 0:00:04]} 34. Rxf5 {[%emt 0:05:19]} Rh7 {[%emt 0:00:04]} 35. Rxf6 {[%emt 0:00:04]} Rxh3 {[%emt 0:00:03]} 36. f4 {[%emt 0:00:09]} a5 {[%emt 0:00:30]} 37. Ke2 {[%emt 0:00:26]} Rh5 {[%emt 0:01:02]} 38. Re6 {[%emt 0:00:25]} b5 {[%emt 0:00:28]} 39. Re5 {[%emt 0:01:09]} 1-0

[Event "VI Sunway Sitges Open 2019"]
[Site "Sitges"]
[Date "2019.12.18"]
[Round "6.47"]
[White "Kucuksari, Kaan"]
[Black "Diaz Camallonga, Carles"]
[Result "0-1"]
[ECO "E11"]
[WhiteElo "2337"]
[BlackElo "2468"]
[Annotator "ChessBase"]
[PlyCount "114"]
[EventDate "2019.12.13"]
[EventType "swiss"]
[EventCountry "ESP"]
[SourceTitle "playchess.com"]
[Source "ChessBase"]
[SourceQuality "1"]
[TimeControl "40/5400+30:1800+30"]

1. d4 {[%emt 0:00:00]} e6 {[%emt 0:00:00]} 2. Nf3 {[%emt 0:00:27]} Nf6 {[%emt 0:00:00]} 3. c4 {[%emt 0:01:25]} Bb4+ {[%emt 0:00:32]} 4. Bd2 {[%emt 0:00:05]} c5 {[%emt 0:00:06]} 5. Bxb4 {[%emt 0:00:17]} cxb4 {[%emt 0:00:05]} 6. g3 {[%emt 0:00:03]} O-O {[%emt 0:00:11]} 7. Bg2 {[%emt 0:00:05]} d6 {[%emt 0:00:26]} 8. O-O {[%emt 0:00:13]} a5 {[%emt 0:00:50]} 9. a3 {[%emt 0:00:31]} Na6 {[%emt 0:03:11]} 10. axb4 {[%emt 0:01:03]} Nxb4 {[%emt 0:01:13]} 11. Nc3 {[%emt 0:00:08]} Qc7 {[%emt 0:01:20]} 12. b3 {[%emt 0:04:25]} Bd7 {[%emt 0:05:50]} 13. e4 {[%emt 0:01:14]} e5 {[%emt 0:01:20]} 14. Qd2 {[%emt 0:01:44]} Rfd8 {[%emt 0:01:41]} 15. Rfc1 {[%emt 0:04:01]} Qb8 {[%emt 0:04:29]} 16. Qe3 {[%emt 0:06:05]} Re8 {[%emt 0:11:10]} 17. dxe5 {[%emt 0:05:22]} dxe5 {[%emt 0:00:09]} 18. Nd5 {[%emt 0:00:43]} Nbxd5 {[%emt 0:03:49]} 19. cxd5 {[%emt 0:01:44]} b5 {[%emt 0:00:56]} 20. Ne1 {[%emt 0:02:09]} b4 {[%emt 0:11:25]} 21. Nd3 {[%emt 0:03:32]} Bb5 {[%emt 0:00:39]} 22. Nc5 {[%emt 0:05:23]} Qb6 {[%emt 0:01:21]} 23. Bf1 {[%emt 0:03:10]} Ng4 {[%emt 0:04:21]} 24. Qg5 {[%emt 0:03:44]} Bxf1 {[%emt 0:02:11]} 25. Qxg4 {[%emt 0:04:58]} Bb5 {[%emt 0:00:20]} 26. Qg5 {[%emt 0:01:55]} h6 {[%emt 0:03:45]} 27. Qe3 {[%emt 0:00:22]} Rec8 {[%emt 0:00:44]} 28. Na4 {[%emt 0:05:01]} Qxe3 {[%emt 0:03:20]} 29. fxe3 {[%emt 0:00:57]} Bxa4 {[%emt 0:09:53]} 30. bxa4 {[%emt 0:01:53]} Kf8 {[%emt 0:00:29]} 31. Kf1 {[%emt 0:05:10]} Ke7 {[%emt 0:00:28]} 32. g4 {[%emt 0:06:28]} Kd6 {[%emt 0:01:35]} 33. Ke2 {[%emt 0:00:17]} b3 {[%emt 0:01:43]} 34. Rcb1 {[%emt 0:07:30]} Rab8 {[%emt 0:00:59]} 35. Rb2 {[%emt 0:07:53]} Rc4 {[%emt 0:06:57]} 36. Kd3 {[%emt 0:00:25]} Rbb4 {[%emt 0:00:08]} 37. Rxb3 {[%emt 0:00:50]} Rxb3+ {[%emt 0:00:02]} 38. Kxc4 {[%emt 0:00:07]} Rxe3 {[%emt 0:00:03]} 39. Kb5 {[%emt 0:02:11]} Rxe4 {[%emt 0:00:04]} 40. Kxa5 {[%emt 0:00:00]} Rxg4 {[%emt 0:00:00]} 41. Kb5 {[%emt 0:04:34]} Rg2 {[%emt 0:06:43]} 42. a5 {[%emt 0:05:14]} Rb2+ {[%emt 0:00:20]} 43. Kc4 {[%emt 0:00:12]} Rc2+ {[%emt 0:03:39]} 44. Kb5 {[%emt 0:00:09]} Rb2+ {[%emt 0:00:17]} 45. Kc4 {[%emt 0:00:02]} Rb8 {[%emt 0:00:05]} 46. a6 {[%emt 0:00:13]} Rc8+ {[%emt 0:00:04]} 47. Kb5 {[%emt 0:00:06]} e4 {[%emt 0:08:41]} 48. a7 {[%emt 0:02:53]} Ra8 {[%emt 0:00:03]} 49. Kb6 {[%emt 0:12:19]} f5 {[%emt 0:01:26]} 50. Kb7 {[%emt 0:01:55]} Rxa7+ {[%emt 0:00:42]} 51. Kxa7 {[%emt 0:02:10]} f4 {[%emt 0:00:08]} 52. Kb6 {[%emt 0:02:02]} e3 {[%emt 0:00:14]} 53. Kb5 {[%emt 0:01:46]} Kxd5 {[%emt 0:00:05]} 54. Kb4 {[%emt 0:01:12]} Kd4 {[%emt 0:00:17]} 55. Rd1+ {[%emt 0:00:51]} Ke4 {[%emt 0:00:02]} 56. Kc4 {[%emt 0:01:17]} e2 {[%emt 0:00:22]} 57. Rd7 {[%emt 0:00:02]} Kf3 {[%emt 0:00:30]} 0-1

[Event "VI Sunway Sitges Open 2019"]
[Site "Sitges"]
[Date "2019.12.18"]
[Round "6.48"]
[White "Ingebretsen, Jens E"]
[Black "Kulaots, Kaido"]
[Result "0-1"]
[ECO "A50"]
[WhiteElo "2255"]
[BlackElo "2538"]
[Annotator "ChessBase"]
[PlyCount "81"]
[EventDate "2019.12.13"]
[EventType "swiss"]
[EventCountry "ESP"]
[SourceTitle "playchess.com"]
[Source "ChessBase"]
[SourceQuality "1"]
[TimeControl "40/5400+30:1800+30"]

1. c4 {[%emt 0:00:38]} b6 {[%emt 0:00:00]} 2. d4 {[%emt 0:00:33]} Bb7 {[%emt 0:00:05]} 3. Nc3 {[%emt 0:00:14]} e6 {[%emt 0:00:26]} 4. a3 {[%emt 0:00:08]} Nf6 {[%emt 0:00:24]} 5. d5 {[%emt 0:06:35]} Bd6 {[%emt 0:02:28]} 6. Nf3 {[%emt 0:03:35]} O-O {[%emt 0:01:00]} 7. Bg5 {[%emt 0:02:17]} h6 {[%emt 0:04:25]} 8. Bh4 {[%emt 0:01:22]} Na6 {[%emt 0:04:22]} 9. e3 {[%emt 0:02:37]} Be7 {[%emt 0:01:36]} 10. Be2 {[%emt 0:11:58]} Nc5 {[%emt 0:04:37]} 11. O-O {[%emt 0:15:17]} Nxd5 {[%emt 0:10:26]} 12. cxd5 {[%emt 0:00:51]} Bxh4 {[%emt 0:00:05]} 13. Nxh4 {[%emt 0:07:04]} Qxh4 {[%emt 0:00:08]} 14. b4 {[%emt 0:07:51]} Ne4 {[%emt 0:05:06]} 15. Nxe4 {[%emt 0:12:42]} Qxe4 {[%emt 0:00:08]} 16. Bf3 {[%emt 0:00:10]} Qe5 {[%emt 0:22:13]} 17. dxe6 {[%emt 0:00:37]} Bxf3 {[%emt 0:00:07]} 18. exf7+ {[%emt 0:01:02]} Rxf7 {[%emt 0:00:07]} 19. gxf3 {[%emt 0:00:05]} a5 {[%emt 0:04:18]} 20. f4 {[%emt 0:03:30]} Qe4 {[%emt 0:00:42]} 21. Qb1 {[%emt 0:00:27]} Qe6 {[%emt 0:00:27]} 22. Rc1 {[%emt 0:06:07]} d5 {[%emt 0:07:52]} 23. Qd3 {[%emt 0:01:22]} Qg4+ {[%emt 0:09:34]} 24. Kf1 {[%emt 0:01:28]} Qf3 {[%emt 0:01:47]} 25. Qd1 {[%emt 0:01:31]} Qe4 {[%emt 0:02:05]} 26. b5 {[%emt 0:11:49]} Re8 {[%emt 0:03:37]} 27. Qh5 {[%emt 0:00:46]} d4 {[%emt 0:06:41]} 28. Re1 {[%emt 0:00:01]} Rf5 {[%emt 0:03:29]} 29. Qh3 {[%emt 0:00:43]} Rxb5 {[%emt 0:01:36]} 30. Qg2 {[%emt 0:00:45]} Qxg2+ {[%emt 0:02:26]} 31. Kxg2 {[%emt 0:00:02]} d3 {[%emt 0:00:19]} 32. e4 {[%emt 0:00:34]} c5 {[%emt 0:01:00]} 33. Kf3 {[%emt 0:00:07]} c4 {[%emt 0:00:48]} 34. Red1 {[%emt 0:00:12]} Rb2 {[%emt 0:00:26]} 35. Rac1 {[%emt 0:00:24]} b5 {[%emt 0:00:48]} 36. a4 {[%emt 0:00:07]} d2 {[%emt 0:01:13]} 37. Rc3 {[%emt 0:00:29]} Rb3 {[%emt 0:00:36]} 38. Rxb3 {[%emt 0:00:05]} cxb3 {[%emt 0:00:05]} 39. Ke3 {[%emt 0:02:08]} b2 {[%emt 0:00:53]} 40. Kd3 {[%emt 0:00:00]} bxa4 {[%emt 0:00:00]} 41. Kd4 {[%emt 0:00:13]} 0-1

[Event "VI Sunway Sitges Open 2019"]
[Site "Sitges"]
[Date "2019.12.18"]
[Round "6.49"]
[White "Pascual Sauch, Angel"]
[Black "Ansat, Aldiyar"]
[Result "0-1"]
[ECO "E67"]
[WhiteElo "2096"]
[BlackElo "2280"]
[Annotator "NA"]
[PlyCount "114"]
[EventDate "2019.12.13"]
[EventType "swiss"]
[EventCountry "ESP"]
[SourceTitle "playchess.com"]
[Source "ChessBase"]
[SourceQuality "1"]
[TimeControl "40/5400+30:1800+30"]

1. c4 {[%emt 0:00:01]} g6 {[%emt 0:00:23]} 2. Nc3 {[%emt 0:00:18]} Bg7 {[%emt 0:00:08]} 3. g3 {[%emt 0:00:11]} Nf6 {[%emt 0:00:10]} 4. Bg2 {[%emt 0:00:06]} O-O {[%emt 0:00:05]} 5. d4 {[%emt 0:01:01]} d6 {[%emt 0:00:05]} 6. Nf3 {[%emt 0:01:20]} Nbd7 {[%emt 0:00:06]} 7. O-O {[%emt 0:02:12]} e5 {[%emt 0:01:30]} 8. e3 {[%emt 0:04:47]} c6 {[%emt 0:04:37]} 9. a3 {[%emt 0:03:09]} a5 {[%emt 0:02:20]} 10. b3 {[%emt 0:01:39]} Qe7 {[%emt 0:02:05]} 11. a4 {[%emt 0:01:08]} Rd8 {[%emt 0:06:43]} 12. Ba3 {[%emt 0:02:08]} Ne8 {[%emt 0:04:22]} 13. Qc2 {[%emt 0:03:28]} f5 {[%emt 0:01:19]} 14. dxe5 {[%emt 0:02:12]} Nxe5 {[%emt 0:00:53]} 15. Rad1 {[%emt 0:00:38]} Nxf3+ {[%emt 0:18:23]} 16. Bxf3 {[%emt 0:00:09]} Be6 {[%emt 0:00:30]} 17. Rd2 {[%emt 0:00:57]} Rd7 {[%emt 0:01:15]} 18. Rfd1 {[%emt 0:00:39]} Rad8 {[%emt 0:00:59]} 19. Ne2 {[%emt 0:08:00]} Nc7 {[%emt 0:06:33]} 20. Nd4 {[%emt 0:01:49]} Bf7 {[%emt 0:02:29]} 21. Bxc6 {[%emt 0:05:50]} bxc6 {[%emt 0:01:52]} 22. Nxc6 {[%emt 0:00:23]} Qe8 {[%emt 0:03:15]} 23. Nxd8 {[%emt 0:00:59]} Rxd8 {[%emt 0:00:22]} 24. Bxd6 {[%emt 0:03:37]} Ne6 {[%emt 0:00:28]} 25. h4 {[%emt 0:01:08]} Qc6 {[%emt 0:08:51]} 26. Ba3 {[%emt 0:02:10]} Rxd2 {[%emt 0:02:32]} 27. Qxd2 {[%emt 0:00:28]} f4 {[%emt 0:17:12]} 28. Qd5 {[%emt 0:02:32]} Qe8 {[%emt 0:00:19]} 29. Qd7 {[%emt 0:03:47]} Qb8 {[%emt 0:04:33]} 30. Qb5 {[%emt 0:00:51]} Qa8 {[%emt 0:00:11]} 31. Qd5 {[%emt 0:02:45]} Qe8 {[%emt 0:01:12]} 32. Qxa5 {[%emt 0:01:24]} fxg3 {[%emt 0:00:40]} 33. fxg3 {[%emt 0:00:06]} Qb8 {[%emt 0:01:22]} 34. Bd6 {[%emt 0:05:58]} Qxb3 {[%emt 0:00:23]} 35. Qa8+ {[%emt 0:04:12]} Nf8 {[%emt 0:02:06]} 36. Qf3 {[%emt 0:01:42]} Qxc4 {[%emt 0:01:24]} 37. a5 {[%emt 0:01:43]} Qa2 {[%emt 0:05:49]} 38. Rf1 {[%emt 0:03:43]} Bd5 {[%emt 0:02:17]} 39. e4 {[%emt 0:00:01]} Bf7 {[%emt 0:00:31]} 40. a6 {[%emt 0:00:48]} Nd7 {[%emt 0:00:30]} 41. Qf2 {[%emt 0:12:51]} Qxf2+ {[%emt 0:02:58]} 42. Kxf2 {[%emt 0:01:20]} Bc4 {[%emt 0:00:21]} 43. Re1 {[%emt 0:03:52]} Bxa6 {[%emt 0:07:57]} 44. e5 {[%emt 0:00:10]} Bc4 {[%emt 0:01:19]} 45. e6 {[%emt 0:07:42]} Nf6 {[%emt 0:00:07]} 46. Kf3 {[%emt 0:03:34]} Ne8 {[%emt 0:00:37]} 47. Bb4 {[%emt 0:07:04]} Nc7 {[%emt 0:00:59]} 48. e7 {[%emt 0:00:26]} Ne8 {[%emt 0:00:36]} 49. g4 {[%emt 0:01:31]} h6 {[%emt 0:01:19]} 50. Kf4 {[%emt 0:00:46]} Kf7 {[%emt 0:00:34]} 51. Rc1 {[%emt 0:02:30]} Bb5 {[%emt 0:03:57]} 52. g5 {[%emt 0:01:40]} h5 {[%emt 0:00:42]} 53. Ke4 {[%emt 0:00:47]} Ke6 {[%emt 0:00:33]} 54. Kf3 {[%emt 0:02:45]} Bd3 {[%emt 0:02:05]} 55. Rc8 {[%emt 0:02:32]} Kf7 {[%emt 0:00:07]} 56. Kf4 {[%emt 0:01:02]} Bf5 {[%emt 0:00:08]} 57. Ba3 {[%emt 0:01:07]} Bxc8 {[%emt 0:00:03]} 0-1

[Event "VI Sunway Sitges Open 2019"]
[Site "Sitges"]
[Date "2019.12.18"]
[Round "6.50"]
[White "Colls Gelaberto, Emili"]
[Black "Pawicka, Magdalena"]
[Result "1-0"]
[ECO "E04"]
[WhiteElo "2045"]
[BlackElo "1827"]
[Annotator "NA"]
[PlyCount "109"]
[EventDate "2019.12.13"]
[EventType "swiss"]
[EventCountry "ESP"]
[SourceTitle "playchess.com"]
[Source "ChessBase"]
[SourceQuality "1"]
[TimeControl "40/5400+30:1800+30"]

1. d4 {[%emt 0:00:00]} Nf6 {[%emt 0:00:00]} 2. c4 {[%emt 0:00:00]} e6 {[%emt 0:00:00]} 3. Nf3 {[%emt 0:00:00]} d5 {[%emt 0:02:18]} 4. g3 {[%emt 0:00:24]} dxc4 {[%emt 0:00:20]} 5. Bg2 {[%emt 0:00:17]} Bd7 {[%emt 0:00:23]} 6. Ne5 {[%emt 0:01:18]} Bc6 {[%emt 0:00:32]} 7. Nxc6 {[%emt 0:00:10]} Nxc6 {[%emt 0:00:10]} 8. Qa4 {[%emt 0:00:50]} Qd7 {[%emt 0:01:07]} 9. Qxc4 {[%emt 0:02:43]} O-O-O {[%emt 0:07:59]} 10. Bxc6 {[%emt 0:00:52]} Qxc6 {[%emt 0:00:31]} 11. Qxc6 {[%emt 0:00:27]} bxc6 {[%emt 0:00:06]} 12. Be3 {[%emt 0:01:47]} Ng4 {[%emt 0:09:22]} 13. Nc3 {[%emt 0:01:41]} Nxe3 {[%emt 0:00:55]} 14. fxe3 {[%emt 0:00:07]} Be7 {[%emt 0:11:02]} 15. Na4 {[%emt 0:02:08]} Rd5 {[%emt 0:01:36]} 16. O-O {[%emt 0:01:04]} Rf8 {[%emt 0:01:56]} 17. Rac1 {[%emt 0:00:55]} Kb7 {[%emt 0:00:35]} 18. Rc3 {[%emt 0:02:10]} e5 {[%emt 0:01:33]} 19. Rc4 {[%emt 0:01:30]} Bg5 {[%emt 0:03:07]} 20. Kf2 {[%emt 0:00:47]} Re8 {[%emt 0:04:20]} 21. Rd1 {[%emt 0:04:35]} Red8 {[%emt 0:05:04]} 22. Rd3 {[%emt 0:00:43]} Bf6 {[%emt 0:04:39]} 23. Rb3+ {[%emt 0:03:11]} Rb5 {[%emt 0:00:25]} 24. Nc5+ {[%emt 0:03:54]} Ka8 {[%emt 0:03:21]} 25. dxe5 {[%emt 0:03:54]} Bxe5 {[%emt 0:01:55]} 26. Nd3 {[%emt 0:02:07]} Rxb3 {[%emt 0:01:39]} 27. axb3 {[%emt 0:00:08]} Bd6 {[%emt 0:00:07]} 28. Rxc6 {[%emt 0:00:16]} Rb8 {[%emt 0:00:06]} 29. b4 {[%emt 0:00:29]} Kb7 {[%emt 0:00:31]} 30. Rc4 {[%emt 0:00:25]} Ka6 {[%emt 0:01:31]} 31. b3 {[%emt 0:01:16]} Kb5 {[%emt 0:00:53]} 32. Kf3 {[%emt 0:00:54]} a5 {[%emt 0:02:06]} 33. bxa5 {[%emt 0:01:00]} Kxa5 {[%emt 0:00:08]} 34. Rc3 {[%emt 0:01:50]} Rb7 {[%emt 0:01:18]} 35. Ke4 {[%emt 0:00:59]} Bb4 {[%emt 0:01:55]} 36. Nxb4 {[%emt 0:00:58]} Kxb4 {[%emt 0:00:16]} 37. Kd3 {[%emt 0:00:10]} c5 {[%emt 0:04:26]} 38. Rc4+ {[%emt 0:01:09]} Kb5 {[%emt 0:00:26]} 39. Rg4 {[%emt 0:01:21]} g6 {[%emt 0:04:17]} 40. Kc3 {[%emt 0:00:00]} f5 {[%emt 0:00:00]} 41. Rf4 {[%emt 0:02:37]} Re7 {[%emt 0:02:43]} 42. Kd2 {[%emt 0:00:36]} Rd7+ {[%emt 0:02:01]} 43. Ke1 {[%emt 0:00:27]} Re7 {[%emt 0:00:31]} 44. Kf2 {[%emt 0:00:30]} Re4 {[%emt 0:17:55]} 45. g4 {[%emt 0:00:45]} Rxf4+ {[%emt 0:02:48]} 46. exf4 {[%emt 0:00:09]} c4 {[%emt 0:10:45]} 47. bxc4+ {[%emt 0:00:22]} Kxc4 {[%emt 0:00:05]} 48. gxf5 {[%emt 0:00:39]} gxf5 {[%emt 0:00:05]} 49. Kg3 {[%emt 0:03:08]} Kd4 {[%emt 0:02:41]} 50. Kh4 {[%emt 0:00:11]} Ke4 {[%emt 0:01:06]} 51. Kg5 {[%emt 0:00:10]} h6+ {[%emt 0:00:10]} 52. Kxh6 {[%emt 0:00:06]} Kxf4 {[%emt 0:00:05]} 53. Kg6 {[%emt 0:00:23]} Kg4 {[%emt 0:00:05]} 54. h4 {[%emt 0:00:14]} f4 {[%emt 0:00:16]} 55. h5 {[%emt 0:00:43]} 1-0